fUSD/lending_fUSD_20250814
["ID","MTS","AMOUNT","RATE_DAILY","PERIOD"]
[379207861,1755186649986,-1729.74,0.00027397,2]
[379207862,1755186649996,-1013.48,0.00027397,2]
[379207863,1755186650005,-781.17,0.00027397,2]
[379207864,1755186650014,-1337.71,0.00027397,2]
[379207865,1755186650024,-400.0,0.00027397,2]
[379207866,1755186650035,-400.0,0.00027397,2]
[379207867,1755186650045,-400.0,0.00027397,2]
[379207868,1755186650055,-2076.43,0.00027397,2]
[379207869,1755186650064,-602.06,0.00027397,2]
[379207870,1755186650075,-679.46,0.00027397,2]
[379207871,1755186650084,-400.0,0.00027397,2]
[379207872,1755186650094,-450.28,0.00027397,2]
[379207873,1755186650105,-400.0,0.00027397,2]
[379207874,1755186650116,-400.0,0.00027397,2]
[379207875,1755186650126,-1569.25,0.00027397,2]
[379207876,1755186650135,-841.25,0.00027397,2]
[379207877,1755186650145,-588.14,0.00027397,2]
[379207878,1755186650155,-400.0,0.00027397,2]
[379207879,1755186650165,-400.0,0.00027397,2]
[379207880,1755186650175,-2351.87,0.00027397,2]
[379207881,1755186650184,-400.0,0.00027397,2]
[379207882,1755186650194,-405.24,0.00027397,2]
[379207883,1755186650202,-400.0,0.00027397,2]
[379207884,1755186650211,-400.0,0.00027397,2]
[379207885,1755186650221,-2189.06,0.00027397,2]
[379207886,1755186650230,-477.0,0.00027397,2]
[379207887,1755186650240,-1995.33,0.00027397,2]
[379207888,1755186650250,-400.0,0.00027397,2]
[379207889,1755186650259,-400.0,0.00027397,2]
[379207890,1755186650268,-400.0,0.00027397,2]
[379207891,1755186650278,-400.0,0.00027397,2]
[379207892,1755186650289,-400.0,0.00027397,2]
[379207893,1755186650299,-400.0,0.00027397,2]
[379207894,1755186650308,-400.0,0.00027397,2]
[379207895,1755186650318,-438.35,0.00027397,2]
[379207896,1755186650327,-1404.22,0.00027397,2]
[379207897,1755186650337,-4932.12,0.00027397,2]
[379207898,1755186650347,-400.0,0.00027397,2]
[379207899,1755186650356,-507.67,0.00027397,2]
[379207900,1755186650366,-1816.38,0.00027397,2]
[379207901,1755186650376,-833.19,0.00027397,2]
[379207902,1755186650386,-1492.09,0.00027397,2]
[379207903,1755186650396,-400.0,0.00027397,2]
[379207904,1755186650406,-1033.88,0.00027397,2]
[379207905,1755186650415,-2000.0,0.00027397,2]
[379207906,1755186650425,-414.66,0.00027397,2]
[379207907,1755186650435,-2067.58,0.00027397,2]
[379207908,1755186650445,-958.16,0.00027397,2]
[379207909,1755186650454,-400.0,0.00027397,2]
[379207910,1755186650465,-1465.05,0.00027397,2]
[379207911,1755186650480,-400.0,0.00027397,2]
[379207912,1755186650491,-1183.29,0.00027397,2]
[379207913,1755186650501,-200.507829,0.00027397,2]
[379207914,1755186650511,-942.57,0.00027397,2]
[379207915,1755186650521,-1861.0,0.00027397,2]
[379207916,1755186650534,-970.47,0.00027397,2]
[379207917,1755186650544,-1417.08,0.00027397,2]
[379207918,1755186650555,-400.0,0.00027397,2]
[379207919,1755186650566,-1327.7,0.00027397,2]
[379207920,1755186650576,-400.0,0.00027397,2]
[379207921,1755186650585,-400.0,0.00027397,2]
[379207922,1755186650595,-400.0,0.00027397,2]
[379207923,1755186650605,-400.0,0.00027397,2]
[379207924,1755186650614,-400.0,0.00027397,2]
[379207925,1755186650630,-400.0,0.00027397,2]
[379207926,1755186650639,-400.0,0.00027397,2]
[379207927,1755186650648,-400.0,0.00027397,2]
[379207928,1755186650658,-1726.96,0.00027397,2]
[379207929,1755186650668,-559.52,0.00027397,2]
[379207930,1755186650677,-400.0,0.00027397,2]
[379207931,1755186650686,-400.0,0.00027397,2]
[379207932,1755186650695,-3504.57,0.00027397,2]
[379207933,1755186650704,-400.0,0.00027397,2]
[379207934,1755186650714,-1557.35,0.00027397,2]
[379207935,1755186650724,-400.0,0.00027397,2]
[379207936,1755186650734,-400.0,0.00027397,2]
[379207937,1755186650743,-4791.01,0.00027397,2]
[379207938,1755186650753,-400.0,0.00027397,2]
[379207939,1755186650763,-500.0,0.00027397,2]
[379207940,1755186650773,-457.19,0.00027397,2]
[379207941,1755186650783,-400.0,0.00027397,2]
[379207942,1755186650792,-500.0,0.00027397,2]
[379207943,1755186650802,-3003.89,0.00027397,2]
[379207944,1755186650811,-500.0,0.00027397,2]
[379207945,1755186650820,-154.51131682,0.00027397,2]
[379207946,1755186650830,-729.59,0.00027397,2]
[379207947,1755186650839,-2237.74,0.00027397,2]
[379207948,1755186650848,-400.0,0.00027397,2]
[379207949,1755186650857,-400.0,0.00027397,2]
[379207950,1755186650865,-613.53,0.00027397,2]
[379207951,1755186650873,-755.15,0.00027397,2]
[379207952,1755186650882,-3825.52,0.00027397,2]
[379207953,1755186650892,-410.99,0.00027397,2]
[379207954,1755186650902,-552.63,0.00027397,2]
[379207955,1755186650912,-402.88532353,0.00027397,2]
[379207956,1755186650922,-767.56,0.00027397,2]
[379207957,1755186650931,-2623.53,0.00027397,2]
[379207958,1755186650940,-1398.91,0.00027397,2]
[379207959,1755186650950,-1461.22,0.00027397,2]
[379207960,1755186650959,-5344.78,0.00027397,2]
[379207961,1755186650969,-542.39,0.00027397,2]
[379207962,1755186650978,-549.5,0.00027397,2]
[379207963,1755186650988,-400.0,0.00027397,2]
[379207964,1755186650998,-400.0,0.00027397,2]
[379207965,1755186651008,-400.0,0.00027397,2]
[379207966,1755186651018,-412.22,0.00027397,2]
[379207967,1755186651027,-618.1,0.00027397,2]
[379207968,1755186651038,-1296.9,0.00027397,2]
[379207969,1755186651048,-3666.49,0.00027397,2]
[379207970,1755186651057,-400.0,0.00027397,2]
[379207971,1755186651067,-1046.76,0.00027397,2]
[379207972,1755186651078,-400.0,0.00027397,2]
[379207973,1755186651088,-400.0,0.00027397,2]
[379207974,1755186651097,-827.01,0.00027397,2]
[379207975,1755186651108,-989.14,0.00027397,2]
[379207976,1755186651118,-400.0,0.00027397,2]
[379207977,1755186651128,-400.0,0.00027397,2]
[379207978,1755186651138,-2341.48,0.00027397,2]
[379207979,1755186651148,-400.0,0.00027397,2]
[379207980,1755186651158,-996.03,0.00027397,2]
[379207981,1755186651168,-400.0,0.00027397,2]
[379207982,1755186651178,-400.0,0.00027397,2]
[379207983,1755186651188,-400.0,0.00027397,2]
[379207984,1755186651197,-2478.02,0.00027397,2]
[379207985,1755186651207,-1600.15,0.00027397,2]
[379207986,1755186651216,-400.0,0.00027397,2]
[379207987,1755186651226,-1789.03,0.00027397,2]
[379207988,1755186651235,-400.0,0.00027397,2]
[379207989,1755186651245,-400.0,0.00027397,2]
[379207990,1755186651255,-3680.76,0.00027397,2]
[379207991,1755186651264,-400.0,0.00027397,2]
[379207992,1755186651274,-400.0,0.00027397,2]
[379207993,1755186651284,-400.0,0.00027397,2]
[379207994,1755186651294,-1432.13,0.00027397,2]
[379207995,1755186651303,-551.83,0.00027397,2]
[379207996,1755186651313,-400.0,0.00027397,2]
[379207997,1755186651322,-400.0,0.00027397,2]
[379207998,1755186651332,-400.0,0.00027397,2]
[379207999,1755186651341,-400.0,0.00027397,2]
[379208000,1755186651350,-400.0,0.00027397,2]
[379208001,1755186651360,-500.65,0.00027397,2]
[379208002,1755186651370,-400.0,0.00027397,2]
[379208003,1755186651379,-400.0,0.00027397,2]
[379208004,1755186651389,-3494.26,0.00027397,2]
[379208005,1755186651398,-2035.85,0.00027397,2]
[379208006,1755186651408,-1916.38,0.00027397,2]
[379208007,1755186651418,-400.0,0.00027397,2]
[379208008,1755186651427,-400.0,0.00027397,2]
[379208009,1755186651437,-822.87,0.00027397,2]
[379208010,1755186651447,-400.0,0.00027397,2]
[379208011,1755186651456,-400.0,0.00027397,2]
[379208012,1755186651473,-2842.36,0.00027397,2]
[379208013,1755186651482,-638.94,0.00027397,2]
[379208014,1755186651491,-675.53,0.00027397,2]
[379208015,1755186651502,-407.12,0.00027397,2]
[379208016,1755186651513,-400.0,0.00027397,2]
[379208017,1755186651523,-492.62,0.00027397,2]
[379208018,1755186651534,-400.0,0.00027397,2]
[379208019,1755186651548,-5090.58,0.00027397,2]
[379208020,1755186651557,-2823.85,0.00027397,2]
[379208021,1755186651567,-2259.47,0.00027397,2]
[379208022,1755186651579,-815.1,0.00027397,2]
[379208023,1755186651588,-2839.03,0.00027397,2]
[379208024,1755186651597,-1149.9,0.00027397,2]
[379208025,1755186651607,-400.0,0.00027397,2]
[379208026,1755186651616,-2724.7,0.00027397,2]
[379208027,1755186651626,-3288.38,0.00027397,2]
[379208028,1755186651636,-400.0,0.00027397,2]
[379208029,1755186651646,-400.0,0.00027397,2]
[379208030,1755186651655,-978.26,0.00027397,2]
[379208031,1755186651665,-1340.29,0.00027397,2]
[379208032,1755186651674,-400.0,0.00027397,2]
[379208033,1755186651684,-575.41,0.00027397,2]
[379208034,1755186651693,-400.0,0.00027397,2]
[379208035,1755186651703,-4067.02,0.00027397,2]
[379208036,1755186651712,-400.0,0.00027397,2]
[379208037,1755186651722,-916.21,0.00027397,2]
[379208038,1755186651732,-485.83,0.00027397,2]
[379208039,1755186651741,-400.0,0.00027397,2]
[379208040,1755186651751,-400.0,0.00027397,2]
[379208041,1755186651760,-400.0,0.00027397,2]
[379208042,1755186651770,-400.0,0.00027397,2]
[379208043,1755186651779,-400.0,0.00027397,2]
[379208044,1755186651790,-850.85,0.00027397,2]
[379208045,1755186651800,-3353.76,0.00027397,2]
[379208046,1755186651809,-1816.28,0.00027397,2]
[379208047,1755186651819,-400.0,0.00027397,2]
[379208048,1755186651829,-616.11,0.00027397,2]
[379208049,1755186651838,-3868.87,0.00027397,2]
[379208050,1755186651847,-418.51,0.00027397,2]
[379208051,1755186651857,-400.0,0.00027397,2]
[379208052,1755186651867,-2243.93,0.00027397,2]
[379208053,1755186651876,-1629.64,0.00027397,2]
[379208054,1755186651886,-400.0,0.00027397,2]
[379208055,1755186651896,-500.0,0.00027397,10]
[379208056,1755186651905,-938.53,0.00027397,2]
[379208057,1755186651914,-400.0,0.00027397,2]
[379208058,1755186651923,-2576.03,0.00027397,2]
[379208059,1755186651933,-1858.88,0.00027397,2]
[379208060,1755186651943,-400.0,0.00027397,2]
[379208061,1755186651952,-400.0,0.00027397,2]
[379208062,1755186651963,-1152.58,0.00027397,2]
[379208063,1755186651974,-3377.84,0.00027397,2]
[379208064,1755186651983,-668.68,0.00027397,2]
[379208065,1755186651993,-817.35,0.00027397,2]
[379208066,1755186652003,-400.0,0.00027397,2]
[379208067,1755186652013,-4214.59,0.00027397,2]
[379208068,1755186652022,-460.86,0.00027397,2]
[379208069,1755186652032,-1630.79,0.00027397,2]
[379208070,1755186652042,-400.0,0.00027397,2]
[379208071,1755186652051,-400.0,0.00027397,2]
[379208072,1755186652061,-400.0,0.00027397,2]
[379208073,1755186652070,-576.39,0.00027397,2]
[379208074,1755186652080,-4148.75,0.00027397,2]
[379208075,1755186652090,-400.0,0.00027397,2]
[379208076,1755186652099,-400.0,0.00027397,2]
[379208077,1755186652109,-1486.76,0.00027397,2]
[379208078,1755186652119,-1699.95,0.00027397,2]
[379208079,1755186652128,-400.0,0.00027397,2]
[379208080,1755186652138,-1083.57,0.00027397,2]
[379208081,1755186652148,-1247.31,0.00027397,2]
[379208082,1755186652284,-403.36,0.00027397,2]
[379208083,1755186652297,-877.03,0.00027397,2]
[379208084,1755186652307,-1367.25,0.00027397,2]
[379208085,1755186652318,-400.0,0.00027397,2]
[379208086,1755186652327,-400.0,0.00027397,2]
[379208087,1755186652337,-3956.84,0.00027397,2]
[379208088,1755186652347,-500.0,0.00027397,2]
[379208089,1755186652356,-500.0,0.00027397,2]
[379208090,1755186652366,-400.0,0.00027397,2]
[379208091,1755186652376,-911.9,0.00027397,2]
[379208092,1755186652386,-400.0,0.00027397,2]
[379208093,1755186652395,-400.0,0.00027397,2]
[379208094,1755186652405,-400.0,0.00027397,2]
[379208095,1755186652414,-2343.48,0.00027397,2]
[379208096,1755186652423,-400.0,0.00027397,2]
[379208097,1755186652434,-4475.7,0.00027397,2]
[379208098,1755186652443,-1614.54,0.00027397,2]
[379208099,1755186652453,-419.02,0.00027397,2]
[379208100,1755186652463,-734.83,0.00027397,2]
[379208101,1755186652475,-400.0,0.00027397,2]
[379208102,1755186652485,-400.0,0.00027397,2]
[379208103,1755186652495,-432.92,0.00027397,2]
[379208104,1755186652504,-400.0,0.00027397,2]
[379208105,1755186652516,-326.05624125,0.00027397,2]
[379208106,1755186652526,-400.0,0.00027397,2]
[379208107,1755186652537,-1111.04,0.00027397,2]
[379208108,1755186652548,-4001.04,0.00027397,2]
[379208109,1755186652559,-400.0,0.00027397,2]
[379208110,1755186652569,-1042.16,0.00027397,2]
[379208111,1755186652579,-982.64,0.00027397,2]
[379208112,1755186652589,-1443.7,0.00027397,2]
[379208113,1755186652599,-1095.2,0.00027397,2]
[379208114,1755186652609,-1740.1,0.00027397,2]
[379208115,1755186652619,-4412.23,0.00027397,2]
[379208116,1755186652628,-400.0,0.00027397,2]
[379208117,1755186652638,-400.0,0.00027397,2]
[379208118,1755186652648,-4469.29,0.00027397,2]
[379208119,1755186652659,-454.05,0.00027397,2]
[379208120,1755186652669,-400.0,0.00027397,2]
[379208121,1755186652679,-402.05,0.00027397,2]
[379208122,1755186652688,-400.0,0.00027397,2]
[379208123,1755186652698,-154.02091792,0.00027397,2]
[379208124,1755186652707,-400.0,0.00027397,2]
[379208125,1755186652717,-400.0,0.00027397,2]
[379208126,1755186652727,-2356.2,0.00027397,2]
[379208127,1755186652736,-3699.63,0.00027397,2]
[379208128,1755186652746,-1647.2,0.00027397,2]
[379208129,1755186652755,-3106.75,0.00027397,2]
[379208130,1755186652765,-2185.75,0.00027397,2]
[379208131,1755186652774,-400.0,0.00027397,2]
[379208132,1755186652784,-3001.86,0.00027397,2]
[379208133,1755186652794,-3509.52,0.00027397,2]
[379208134,1755186652803,-418.71,0.00027397,2]
[379208135,1755186652813,-1462.02,0.00027397,2]
[379208136,1755186652822,-400.0,0.00027397,2]
[379208137,1755186652832,-1490.25,0.00027397,2]
[379208138,1755186652843,-400.0,0.00027397,2]
[379208139,1755186652852,-400.0,0.00027397,2]
[379208140,1755186652862,-2051.51,0.00027397,2]
[379208141,1755186652872,-528.7,0.00027397,2]
[379208142,1755186652882,-816.43,0.00027397,2]
[379208143,1755186652892,-400.0,0.00027397,2]
[379208144,1755186652901,-2237.59,0.00027397,2]
[379208145,1755186652911,-400.0,0.00027397,2]
[379208146,1755186652920,-1380.27,0.00027397,2]
[379208147,1755186652930,-465.68879832,0.00027397,2]
[379208148,1755186652940,-2825.27,0.00027397,2]
[379208149,1755186652950,-4635.57,0.00027397,2]
[379208150,1755186652960,-400.0,0.00027397,2]
[379208151,1755186652971,-3387.44,0.00027397,2]
[379208152,1755186652982,-1693.7,0.00027397,2]
[379208153,1755186652992,-400.0,0.00027397,2]
[379208154,1755186653002,-626.75,0.00027397,2]
[379208155,1755186653012,-794.43,0.00027397,2]
[379208156,1755186653022,-794.43,0.00027397,2]
[379208157,1755186653033,-794.43,0.00027397,2]
[379208158,1755186653044,-794.43,0.00027397,2]
[379208159,1755186653054,-794.43,0.00027397,2]
[379208160,1755186653064,-794.43,0.00027397,2]
[379208161,1755186653073,-794.43,0.00027397,2]
[379208162,1755186653083,-794.43,0.00027397,2]
[379208163,1755186653094,-794.43,0.00027397,2]
[379208164,1755186653104,-794.43,0.00027397,2]
[379208165,1755186653115,-400.0,0.00027397,2]
[379208166,1755186653126,-794.43,0.00027397,2]
[379208167,1755186653138,-794.43,0.00027397,2]
[379208168,1755186653148,-794.43,0.00027397,2]
[379208169,1755186653157,-794.43,0.00027397,2]
[379208170,1755186653167,-1306.27,0.00027397,2]
[379208171,1755186653177,-626.54,0.00027397,2]
[379208172,1755186653187,-1670.98,0.00027397,2]
[379208173,1755186653196,-1526.92,0.00027397,2]
[379208174,1755186653206,-400.0,0.00027397,2]
[379208175,1755186653216,-5096.42,0.00027397,2]
[379208176,1755186653225,-597.16,0.00027397,2]
[379208177,1755186653235,-5057.74,0.00027397,2]
[379208178,1755186653244,-400.0,0.00027397,2]
[379208179,1755186653253,-2065.96,0.00027397,2]
[379208180,1755186653263,-2813.88,0.00027397,2]
[379208181,1755186653273,-2496.86,0.00027397,2]
[379208182,1755186653285,-581.17,0.00027397,2]
[379208183,1755186653295,-400.0,0.00027397,2]
[379208184,1755186653305,-467.98,0.00027397,2]
[379208185,1755186653314,-400.0,0.00027397,2]
[379208186,1755186653324,-3020.31,0.00027397,2]
[379208187,1755186653334,-400.0,0.00027397,2]
[379208188,1755186653343,-752.23,0.00027397,2]
[379208189,1755186653353,-817.92,0.00027397,2]
[379208190,1755186653363,-650.57,0.00027397,2]
[379208191,1755186653373,-1203.39,0.00027397,2]
[379208192,1755186653383,-400.0,0.00027397,2]
[379208193,1755186653392,-400.0,0.00027397,2]
[379208194,1755186653402,-400.0,0.00027397,2]
[379208195,1755186653411,-400.0,0.00027397,2]
[379208196,1755186653421,-400.0,0.00027397,2]
[379208197,1755186653431,-2362.22,0.00027397,2]
[379208198,1755186653440,-400.0,0.00027397,2]
[379208199,1755186653450,-2635.22,0.00027397,2]
[379208200,1755186653460,-400.0,0.00027397,2]
[379208201,1755186653471,-564.92,0.00027397,2]
[379208202,1755186653481,-3076.5,0.00027397,2]
[379208203,1755186653490,-400.0,0.00027397,2]
[379208204,1755186653500,-1733.58,0.00027397,2]
[379208205,1755186653510,-1239.16,0.00027397,2]
[379208206,1755186653520,-400.0,0.00027397,2]
[379208207,1755186653529,-400.0,0.00027397,2]
[379208208,1755186653542,-2684.33,0.00027397,2]
[379208209,1755186653552,-400.0,0.00027397,2]
[379208210,1755186653561,-1591.4,0.00027397,2]
[379208211,1755186653571,-400.0,0.00027397,2]
[379208212,1755186653581,-1239.99,0.00027397,2]
[379208213,1755186653590,-400.0,0.00027397,2]
[379208214,1755186653600,-400.0,0.00027397,2]
[379208215,1755186653609,-736.23,0.00027397,2]
[379208216,1755186653620,-1446.19,0.00027397,2]
[379208217,1755186653629,-986.09,0.00027397,2]
[379208218,1755186653639,-400.0,0.00027397,2]
[379208219,1755186653649,-1537.1,0.00027397,2]
[379208220,1755186653659,-400.0,0.00027397,2]
[379208221,1755186653669,-4630.01,0.00027397,2]
[379208222,1755186653679,-2645.72,0.00027397,2]
[379208223,1755186653688,-3517.13,0.00027397,2]
[379208224,1755186653698,-400.82,0.00027397,2]
[379208225,1755186653708,-400.0,0.00027397,2]
[379208226,1755186653718,-400.0,0.00027397,2]
[379208227,1755186653727,-400.0,0.00027397,2]
[379208228,1755186653737,-2879.81,0.00027397,2]
[379208229,1755186653746,-400.0,0.00027397,2]
[379208230,1755186653756,-400.0,0.00027397,2]
[379208231,1755186653765,-1723.4,0.00027397,2]
[379208232,1755186653775,-1491.02,0.00027397,2]
[379208233,1755186653785,-400.0,0.00027397,2]
[379208234,1755186653794,-400.0,0.00027397,2]
[379208235,1755186653804,-671.18,0.00027397,2]
[379208236,1755186653813,-462.85,0.00027397,2]
[379208237,1755186653823,-4098.44,0.00027397,2]
[379208238,1755186653832,-1120.54,0.00027397,2]
[379208239,1755186653841,-400.0,0.00027397,2]
[379208240,1755186653852,-400.0,0.00027397,2]
[379208241,1755186653861,-1503.95,0.00027397,2]
[379208242,1755186653871,-559.69,0.00027397,2]
[379208243,1755186653880,-707.26,0.00027397,2]
[379208244,1755186653889,-473.34227785,0.00027397,2]
[379208245,1755186653899,-2366.44,0.00027397,2]
[379208246,1755186653908,-400.0,0.00027397,2]
[379208247,1755186653918,-614.91,0.00027397,2]
[379208248,1755186653928,-2485.79,0.00027397,2]
[379208249,1755186653938,-400.0,0.00027397,2]
[379208250,1755186653947,-400.0,0.00027397,2]
[379208251,1755186653957,-400.0,0.00027397,2]
[379208252,1755186653966,-941.65,0.00027397,2]
[379208253,1755186653976,-898.64,0.00027397,2]
[379208254,1755186653986,-1622.43,0.00027397,2]
[379208255,1755186653995,-414.36,0.00027397,2]
[379208256,1755186654005,-3140.81,0.00027397,2]
[379208257,1755186654015,-400.0,0.00027397,2]
[379208258,1755186654024,-400.0,0.00027397,2]
[379208259,1755186654036,-2130.06,0.00027397,2]
[379208260,1755186654045,-1770.08,0.00027397,2]
[379208261,1755186654056,-2447.17,0.00027397,2]
[379208262,1755186654066,-2193.51,0.00027397,2]
[379208263,1755186654076,-3647.85,0.00027397,2]
[379208264,1755186654086,-1546.87,0.00027397,2]
[379208265,1755186654096,-500.0,0.00027397,2]
[379208266,1755186654106,-400.0,0.00027397,2]
[379208267,1755186654116,-3143.73,0.00027397,2]
[379208268,1755186654126,-400.0,0.00027397,2]
[379208269,1755186654136,-4337.59,0.00027397,2]
[379208270,1755186654146,-400.0,0.00027397,2]
[379208271,1755186654156,-400.0,0.00027397,2]
[379208272,1755186654166,-404.93,0.00027397,2]
[379208273,1755186654177,-2831.67,0.00027397,2]
[379208274,1755186654188,-436.46,0.00027397,2]
[379208275,1755186654198,-4368.47,0.00027397,2]
[379208276,1755186654209,-400.0,0.00027397,2]
[379208277,1755186654220,-3745.92,0.00027397,2]
[379208278,1755186654231,-400.0,0.00027397,2]
[379208279,1755186654242,-400.0,0.00027397,2]
[379208280,1755186654252,-1000.0,0.00027397,2]
[379208281,1755186654262,-647.43,0.00027397,2]
[379208282,1755186654273,-2328.7,0.00027397,2]
[379208283,1755186654288,-845.03,0.00027397,2]
[379208284,1755186654298,-2752.77,0.00027397,2]
[379208285,1755186654308,-400.0,0.00027397,2]
[379208286,1755186654318,-400.0,0.00027397,2]
[379208287,1755186654327,-3702.12,0.00027397,2]
[379208288,1755186654338,-1546.41,0.00027397,2]
[379208289,1755186654347,-400.0,0.00027397,2]
[379208290,1755186654357,-3306.13,0.00027397,2]
[379208291,1755186654367,-545.96,0.00027397,2]
[379208292,1755186654376,-400.0,0.00027397,2]
[379208293,1755186654385,-400.0,0.00027397,2]
[379208294,1755186654394,-2210.49,0.00027397,2]
[379208295,1755186654404,-581.6,0.00027397,2]
[379208296,1755186654414,-1436.01,0.00027397,2]
[379208297,1755186654423,-5123.28,0.00027397,2]
[379208298,1755186654433,-400.0,0.00027397,2]
[379208299,1755186654443,-2002.86,0.00027397,2]
[379208300,1755186654452,-502.86,0.00027397,2]
[379208301,1755186654465,-570.94,0.00027397,2]
[379208302,1755186654475,-570.94,0.00027397,2]
[379208303,1755186654485,-570.94,0.00027397,2]
[379208304,1755186654495,-2267.99,0.00027397,2]
[379208305,1755186654505,-570.94,0.00027397,2]
[379208306,1755186654888,-570.94,0.00027397,2]
[379208307,1755186654899,-570.94,0.00027397,2]
[379208308,1755186654909,-570.94,0.00027397,2]
[379208309,1755186654919,-570.94,0.00027397,2]
[379208310,1755186654928,-400.0,0.00027397,2]
[379208311,1755186654938,-570.94,0.00027397,2]
[379208312,1755186654948,-570.94,0.00027397,2]
[379208313,1755186654958,-570.94,0.00027397,2]
[379208314,1755186654971,-570.94,0.00027397,2]
[379208315,1755186654981,-570.94,0.00027397,2]
[379208316,1755186654990,-400.0,0.00027397,2]
[379208317,1755186655000,-570.94,0.00027397,2]
[379208318,1755186655010,-570.94,0.00027397,2]
[379208319,1755186655020,-400.0,0.00027397,2]
[379208320,1755186655030,-570.94,0.00027397,2]
[379208321,1755186655042,-570.94,0.00027397,2]
[379208322,1755186655053,-570.94,0.00027397,2]
[379208323,1755186655063,-570.94,0.00027397,2]
[379208324,1755186655073,-459.3,0.00027397,2]
[379208325,1755186655083,-570.94,0.00027397,2]
[379208326,1755186655092,-3338.69,0.00027397,2]
[379208327,1755186655105,-570.94,0.00027397,2]
[379208328,1755186655116,-870.97,0.00027397,2]
[379208329,1755186655126,-1055.29,0.00027397,2]
[379208330,1755186655136,-570.94,0.00027397,2]
[379208331,1755186655146,-570.94,0.00027397,2]
[379208332,1755186655156,-571.06,0.00027397,2]
[379208333,1755186655167,-1620.83,0.00027397,2]
[379208334,1755186655177,-400.0,0.00027397,2]
[379208335,1755186655187,-501.27,0.00027397,2]
[379208336,1755186655198,-1252.21,0.00027397,2]
[379208337,1755186655207,-744.56,0.00027397,2]
[379208338,1755186655218,-5864.74,0.00027397,2]
[379208339,1755186655228,-400.0,0.00027397,2]
[379208340,1755186655238,-400.0,0.00027397,2]
[379208341,1755186655248,-5303.78,0.00027397,2]
[379208342,1755186655258,-400.0,0.00027397,2]
[379208343,1755186655268,-400.0,0.00027397,2]
[379208344,1755186655278,-400.0,0.00027397,2]
[379208345,1755186655290,-2659.55,0.00027397,2]
[379208346,1755186655300,-2465.5,0.00027397,2]
[379208347,1755186655310,-749.4,0.00027397,2]
[379208348,1755186655321,-400.0,0.00027397,2]
[379208349,1755186655331,-1900.36,0.00027397,2]
[379208350,1755186655341,-2330.61,0.00027397,2]
[379208351,1755186655351,-492.65,0.00027397,2]
[379208352,1755186655360,-2330.61,0.00027397,2]
[379208353,1755186655370,-2330.61,0.00027397,2]
[379208354,1755186655380,-2330.61,0.00027397,2]
[379208355,1755186655390,-841.81,0.00027397,2]
[379208356,1755186655400,-2330.61,0.00027397,2]
[379208357,1755186655410,-2330.61,0.00027397,2]
[379208358,1755186655419,-400.0,0.00027397,2]
[379208359,1755186655429,-2330.61,0.00027397,2]
[379208360,1755186655439,-3579.75,0.00027397,2]